lending/lending_fUSD_20240723
["ID","MTS","AMOUNT","RATE_DAILY","PERIOD"]
[332996403,1721737833365,-193.31849777,0.00010712,2]
[332996405,1721737833376,-191.36306097,0.00010793,2]
[332996407,1721737833386,-887.07837569,0.00010807,2]
[332996409,1721737833396,-283.67119642,0.00010877,2]
[332996411,1721737833405,-79663.0,0.0001089,2]
[332996413,1721737833416,-2573.91297,0.0001089,2]
[332996415,1721737833426,-5136.9101,0.00010894,2]
[332996417,1721737833436,-155.39218711,0.00010897,2]
[332996419,1721737833445,-331.6237,0.000109,2]
[332996421,1721737833458,-2450.376,0.000109,2]
[332996423,1721737833468,-1286.0501,0.000109,2]
[332996425,1721737833477,-3762.123,0.000109,2]
[332996427,1721737833487,-30653.9396,0.000109,2]
[332996429,1721737833497,-3092.95064418,0.000109,2]
[332996431,1721737833509,-184.72070106,0.000109,2]
[332996433,1721737833521,-265.01109065,0.000109,2]
[332996435,1721737833531,-344.4,0.00010904,2]
[332996437,1721737833540,-500.0,0.00010912,2]
[332996439,1721737833551,-500.0,0.00010958,2]
[332996441,1721737833561,-250.0,0.00010959,2]
[332996443,1721737833570,-2044.95,0.00010959,2]
[332996445,1721737833580,-477.44206623,0.00010994,2]
[332996447,1721737833590,-500.0,0.00010999,2]
[332996448,1721737833600,-500.0,0.00010999,2]
[332996449,1721737833609,-500.0,0.00010999,2]
[332996450,1721737833618,-275.88485637,0.00010999,2]
[332996451,1721737833628,-335.97661551,0.00010999,2]
[332996452,1721737833637,-500.0,0.00010999,2]
[332996453,1721737833646,-500.0,0.00010999,2]
[332996454,1721737833656,-500.0,0.00010999,2]
[332996455,1721737833666,-500.0,0.00010999,2]
[332996456,1721737833676,-379.24,0.00010999,2]
[332996457,1721737833685,-456.65304924,0.00010999,2]
[332996458,1721737833695,-636.03,0.00010999,2]
[332996459,1721737833708,-500.0,0.00010999,2]
[332996460,1721737833718,-500.0,0.00010999,2]
[332996461,1721737833728,-500.0,0.00010999,2]
[332996462,1721737833737,-500.0,0.00010999,2]
[332996463,1721737833747,-500.0,0.00010999,2]
[332996464,1721737833757,-500.0,0.00010999,2]
[332996465,1721737833766,-500.0,0.00010999,2]
[332996466,1721737833776,-189.65596498,0.00010999,2]
[332996467,1721737833786,-1006.2,0.00010999,2]
[332996468,1721737833795,-500.0,0.00010999,2]
[332996469,1721737833804,-155.99691816,0.00010999,2]
[332996470,1721737833814,-150.0,0.00010999,2]
[332996471,1721737833824,-675.0,0.00011,2]
[332996472,1721737833834,-332821.55536447,0.00011,2]
[332996473,1721737834074,-4854.6930905,0.00011,2]
[332996474,1721737834430,-540.396828,0.00011,2]
[332996475,1721737834442,-399.20391486,0.00011,2]
[332996476,1721737835619,1369.42188879,8.931e-05,2]
[332996479,1721737838396,-155.0,0.00010825,2]
[332996480,1721737838405,-606.0,0.00011,2]
[332996481,1721737838414,-237.2695,0.00011,2]
[332996482,1721737838425,-2168.73738276,0.00011,2]
[332996483,1721737838436,-483.7355491,0.00011,2]
[332996484,1721737838623,-672.16249084,0.00011,2]
[332996485,1721737838634,-1300.04,0.00011,2]
[332996665,1721737840420,-4059.44594399,0.00011,2]
[332996683,1721737840596,-0.53000731,0.00011,2]
[332996685,1721737840608,-598.35641594,0.00011,2]
[332996688,1721737840628,-1015.75187423,0.00011,2]
[332996956,1721737843434,-827.19049739,0.00011,2]
[332996958,1721737843446,-1202.82442801,0.00011,2]
[332996963,1721737843492,-623.25,0.00011,2]
[332996969,1721737843550,-357819.65221628,0.00011,2]
[332996971,1721737843563,-760.21,0.00011,2]
[332996976,1721737843612,-1220.00000001,0.00011,2]
[332996988,1721737843727,-10587.98835102,0.00011,2]
[332996991,1721737843739,-43792.92325754,0.00011,2]
[332996993,1721737843750,-1700.6,0.00011,2]
[332996999,1721737843799,-427.149998,0.00011,2]
[332997003,1721737843811,-1502.81579274,0.00011,2]
[332997325,1721737846881,-50422.77802958,0.00011,2]
[332997327,1721737846894,-1335.245668,0.00011,2]
[332998256,1721738267832,496.05,8.219e-05,2]
[332998259,1721738843658,471.24,8.219e-05,2]
[332998272,1721739031663,-923.81,9.278e-05,2]
[332998273,1721739031673,-278.98672992,9.304e-05,2]
[332998274,1721739031684,-151.46993681,9.309e-05,2]
[332998275,1721739031694,-887.35649619,9.309e-05,2]
[332998276,1721739031703,-155.39218711,9.32e-05,2]
[332998277,1721739031714,-245.84837023,9.347e-05,2]
[332998278,1721739031724,-380.03977749,9.358e-05,2]
[332998279,1721739031734,-156.02826447,9.368e-05,2]
[332998280,1721739031744,-380.03977749,9.384e-05,2]
[332998281,1721739031754,-156.02826447,9.407e-05,2]
[332998282,1721739031763,-380.03977749,9.43e-05,2]
[332998283,1721739031772,-156.73974447,9.448e-05,2]
[332998284,1721739031785,-245.84837023,9.482e-05,2]
[332998285,1721739031796,-245.84837023,9.517e-05,2]
[332998286,1721739031805,-172.22675487,9.557e-05,2]
[332998287,1721739031816,-739.23197974,9.61e-05,2]
[332998288,1721739031828,-190.1195115,9.613e-05,2]
[332998289,1721739031838,-380.03977749,9.618e-05,2]
[332998290,1721739031847,-503.85096241,9.62e-05,2]
[332998291,1721739031870,-317.9955979,9.62e-05,2]
[332998292,1721739031881,-169.56,9.67e-05,2]
[332998293,1721739031890,-168.86917521,9.691e-05,2]
[332998294,1721739031902,-172.22675487,9.736e-05,2]
[332998295,1721739031912,-516.13415998,9.754e-05,2]
[332998296,1721739031923,-305.71240033,9.754e-05,2]
[332998297,1721739031933,-429.69785961,9.76e-05,2]
[332998298,1721739031943,-380.03977749,9.764e-05,2]
[332998299,1721739031954,-180.43059792,9.803e-05,2]
[332998300,1721739031963,-166.66666666,9.813e-05,2]
[332998301,1721739031973,-180.43059792,9.897e-05,2]
[332998302,1721739031982,-190.1195115,9.933e-05,2]
[332998303,1721739031992,-151.46993681,9.951e-05,2]
[332998304,1721739032001,-429.69785961,9.956e-05,2]
[332998305,1721739032011,-190.1195115,0.00010028,2]
[332998306,1721739032020,-179.02087111,0.00010046,2]
[332998307,1721739032043,-560.21110863,0.00010046,2]
[332998308,1721739032053,-190.1195115,0.00010059,2]
[332998309,1721739032064,-1000.0,0.00010073,2]
[332998310,1721739032073,-172.22675487,0.00010137,2]
[332998311,1721739032083,-151.46993681,0.0001015,2]
[332998312,1721739032092,-155.39218711,0.00010171,2]
[332998313,1721739032102,-151.32323001,0.00010174,2]
[332998314,1721739032111,-166.66666666,0.0001018,2]
[332998315,1721739032121,-245.84837023,0.00010242,2]
[332998316,1721739032131,-245.84837023,0.00010244,2]
[332998317,1721739032141,-180.43059792,0.0001041,2]
[332998318,1721739032151,-471.24,0.00010442,2]
[332998319,1721739032160,-245.84837023,0.00010463,2]
[332998320,1721739032169,-191.98451954,0.00010489,2]
[332998321,1721739032178,-150.98429648,0.00010525,2]
[332998322,1721739032187,-166.65691829,0.00010627,2]
[332998323,1721739032196,-180.43059792,0.00010627,2]
[332998324,1721739032206,-611.2573,0.0001069,2]
[332998325,1721739032215,-245.84837023,0.00010693,2]
[332998326,1721739032225,-180.43059792,0.00010724,2]
[332998327,1721739032235,-3250.2608,0.00010725,2]
[332998328,1721739032244,-429.69785961,0.00010741,2]
[332998329,1721739032253,-380.03977749,0.0001076,2]
[332998330,1721739032263,-251.3355033,0.0001078,2]
[332998331,1721739032272,-172.22675487,0.00010789,2]
[332998332,1721739032281,-16209.2861,0.0001079,2]
[332998333,1721739032290,-160.45083347,0.00010796,2]
[332998334,1721739032299,-821.84656031,0.00010825,2]
[332998336,1721739032309,-155.53218327,0.00010825,2]
[332998338,1721739032318,-303.33763087,0.00010825,2]
[332998340,1721739032327,-492.92587255,0.00010825,2]
[332998341,1721739032336,-155.0,0.00010825,2]
[332998342,1721739032345,-156.4218916,0.00010825,2]
[332998343,1721739032356,-268.52906281,0.00010825,2]
[332998345,1721739032365,-367.33448944,0.00010825,2]
[332998347,1721739032374,-599.58301876,0.00010825,2]
[332998349,1721739032385,-356.83039399,0.00010825,2]
[332998350,1721739032395,-926.19182043,0.00010825,2]
[332998351,1721739032404,-245.84837023,0.0001085,2]
[332998352,1721739032413,-172.22675487,0.0001088,2]
[332998353,1721739032422,-129441.0,0.0001089,2]
[332998354,1721739032432,-2144.92747,0.0001089,2]
[332998355,1721739032442,-171.61014676,0.000109,2]
[332998356,1721739032451,-267.84720901,0.000109,2]
[332998357,1721739032460,-189.01688898,0.000109,2]
[332998358,1721739032470,-599.63406026,0.000109,2]
[332998359,1721739032480,-209.2893539,0.000109,2]
[332998360,1721739032489,-194.85349123,0.000109,2]
[332998361,1721739032498,-204.83786661,0.000109,2]
[332998362,1721739032507,-167.08158442,0.00010912,2]
[332998363,1721739032516,-286.53615879,0.00010958,2]
[332998364,1721739032526,-250.0,0.00010959,2]
[332998365,1721739032535,-156.02826447,0.00010991,2]
[332998366,1721739032544,-303.13610562,0.00010999,2]
[332998367,1721739032553,-500.0,0.00010999,2]
[332998368,1721739032563,-500.0,0.00010999,2]
[332998369,1721739032572,-500.0,0.00010999,2]
[332998370,1721739032581,-500.0,0.00010999,2]
[332998371,1721739032590,-500.0,0.00010999,2]
[332998372,1721739032599,-500.0,0.00010999,2]
[332998373,1721739032608,-500.0,0.00010999,2]
[332998374,1721739032617,-427.76710134,0.00010999,2]
[332998375,1721739032627,-416.0,0.00010999,2]
[332998376,1721739032637,-964.27,0.00010999,2]
[332998377,1721739032647,-500.0,0.00010999,2]
[332998378,1721739032656,-500.0,0.00010999,2]
[332998379,1721739032666,-500.0,0.00010999,2]
[332998380,1721739032675,-500.0,0.00010999,2]
[332998381,1721739032685,-500.0,0.00010999,2]
[332998382,1721739032694,-500.0,0.00010999,2]
[332998383,1721739032703,-500.0,0.00010999,2]
[332998384,1721739032712,-604.05880217,0.00010999,2]
[332998385,1721739032721,-500.0,0.00010999,2]
[332998386,1721739032731,-500.0,0.00010999,2]
[332998387,1721739032740,-500.0,0.00010999,2]
[332998388,1721739032750,-500.0,0.00010999,2]
[332998389,1721739032760,-500.0,0.00010999,2]
[332998390,1721739032771,-500.0,0.00010999,2]
[332998391,1721739032781,-500.0,0.00010999,2]
[332998392,1721739032791,-500.0,0.00010999,2]
[332998393,1721739032801,-500.0,0.00010999,2]
[332998394,1721739032810,-500.0,0.00010999,2]
[332998395,1721739032820,-500.0,0.00010999,2]
[332998396,1721739032835,-500.0,0.00010999,2]
[332998397,1721739032845,-500.0,0.00010999,2]
[332998398,1721739032855,-500.0,0.00010999,2]
[332998399,1721739032866,-500.0,0.00010999,2]
[332998400,1721739032876,-500.0,0.00010999,2]
[332998401,1721739032890,-545.32101036,0.00010999,2]
[332998402,1721739032900,-663.0,0.00011,2]
[332998403,1721739032910,-6212.99139735,0.00011,2]
[332998404,1721739032934,-517.85511205,0.00011,2]
[332998405,1721739032946,-820.87408869,0.00011,2]
[332998406,1721739032958,-468.95219745,0.00011,2]
[332998407,1721739032975,-823.03736009,0.00011,2]
[332998408,1721739032987,-332.8073923,0.00011,2]
[332998409,1721739032999,-2012.29595931,0.00011,2]
[332998410,1721739033016,-1420.86797097,0.00011,2]
[332998581,1721739039593,-2993.58,0.00011,2]
[332998588,1721739039654,-400.4380872,0.00011,2]
[332998608,1721739039834,-300.0495264,0.00011,2]
[332998627,1721739040014,-3114.13160702,0.00011,2]
[332998789,1721739041741,-350.55,9.962e-05,2]
[332998881,1721739042583,-149.45,9.962e-05,2]
[332998883,1721739042593,-516.412264,0.00011,2]
[332999159,1721739045848,-81.587736,0.00011,2]
[332999160,1721739045858,-6577.29869098,0.00011,2]
[333001647,1721739432273,446.85,8.219e-05,2]
[333001653,1721740025912,424.5,8.219e-05,2]
[333001664,1721740231857,-386.72807365,9.292e-05,2]
[333001665,1721740231867,-484.82467025,9.331e-05,2]
[333001667,1721740231879,-1156.17532975,9.331e-05,2]
[333001669,1721740231889,-200.0,9.332e-05,2]
[333001672,1721740231899,-153.77388828,9.406e-05,2]
[333001674,1721740231908,-739.66190428,9.419e-05,2]
[333001677,1721740231918,-166.66666666,9.425e-05,2]
[333001679,1721740231927,-91.26331273,9.467e-05,2]
[333001681,1721740231939,-212.76850926,9.467e-05,2]
[333001682,1721740231949,-300.0,9.478e-05,2]
[333001683,1721740231958,-748.26049391,9.479e-05,2]
[333001684,1721740231974,-1004.35381733,9.479e-05,2]
[333001685,1721740231986,-967.08683004,9.479e-05,2]
[333001686,1721740231997,-3182.66143813,9.479e-05,2]
[333001687,1721740232009,-1331.32137545,9.479e-05,2]
[333001688,1721740232021,-4652.98604514,9.479e-05,2]
[333001689,1721740232031,-151.32323001,9.497e-05,2]
[333001690,1721740232041,-161.10168768,9.505e-05,2]
[333001691,1721740232051,-739.66190428,9.516e-05,2]
[333001692,1721740232061,-166.66666667,9.541e-05,2]
[333001693,1721740232070,-150.3588316,9.601e-05,2]
[333001694,1721740232081,-1000.0,9.606e-05,2]
[333001695,1721740232092,-386.72807365,9.625e-05,2]
[333001696,1721740232101,-860.49,9.67e-05,2]
[333001697,1721740232111,-8765.68,9.67e-05,2]
[333001698,1721740232122,-150.3588316,9.676e-05,2]
[333001699,1721740232132,-150.98429648,9.702e-05,2]
[333001700,1721740232142,-164.7702433,9.709e-05,2]
[333001701,1721740232405,-304.03182199,9.759e-05,2]
[333001702,1721740232415,-269.68717225,9.784e-05,2]
[333001703,1721740232425,-151.32323001,9.86e-05,2]
[333001704,1721740232434,-156.02826447,9.963e-05,2]
[333001705,1721740232444,-161.10168768,9.989e-05,2]
[333001706,1721740232453,-151.46993681,0.00010113,2]
[333001707,1721740232463,-150.0,0.00010113,2]
[333001708,1721740232473,-161.673222,0.00010139,2]
[333001709,1721740232483,-153.77388828,0.0001014,2]
[333001710,1721740232492,-180.28880484,0.00010145,2]
[333001711,1721740232502,-929.07,0.00010148,2]
[333001712,1721740232511,-164.7702433,0.00010187,2]
[333001713,1721740232521,-312.27,0.00010203,2]
[333001714,1721740232530,-689.94984776,0.00010248,2]
[333001715,1721740232539,-304.03182199,0.00010262,2]
[333001716,1721740232548,-166.66666666,0.00010317,2]
[333001717,1721740232557,-180.28880484,0.00010371,2]
[333001718,1721740232567,-155.39218711,0.0001038,2]
[333001719,1721740232576,-424.5,0.00010448,2]
[333001720,1721740232587,-689.94984776,0.00010484,2]
[333001721,1721740232597,-180.28880484,0.00010585,2]
[333001722,1721740232607,-186.77256119,0.0001059,2]
[333001723,1721740232617,-154.38946821,0.00010591,2]
[333001724,1721740232626,-150.98429648,0.00010595,2]
[333001725,1721740232636,-269.68717225,0.000106,2]
[333001726,1721740232645,-1669.0,0.0001072,2]
[333001727,1721740232654,-1614.936,0.0001072,2]
[333001728,1721740232664,-9729.616,0.0001072,2]
[333001729,1721740232673,-1202.0,0.0001072,2]
[333001730,1721740232683,-1714.6322,0.0001079,2]
[333001731,1721740232693,-179.94032254,0.00010791,2]
[333001732,1721740232702,-166.66666666,0.00010796,2]
[333001733,1721740232712,-1000.0,0.00010807,2]
[333001734,1721740232722,-1401.1305,0.00010858,2]
[333001735,1721740232732,-304.03182199,0.00010886,2]
[333001736,1721740232741,-277.8435,0.00010899,2]
[333001737,1721740232751,-482.171456,0.000109,2]
[333001738,1721740232760,-90924.0,0.000109,2]
[333001739,1721740232770,-604.7964662,0.000109,2]
[333001740,1721740232779,-189.01688898,0.000109,2]
[333001741,1721740232788,-182.42849114,0.000109,2]
[333001742,1721740232798,-2025.75290862,0.000109,2]
[333001743,1721740232808,-386.72807365,0.0001092,2]
[333001744,1721740232818,-180.28880484,0.00010924,2]
[333001745,1721740232828,-1000.0,0.00010945,2]
[333001746,1721740232837,-1000.0,0.00010945,2]
[333001747,1721740232847,-1000.0,0.00010945,2]
[333001748,1721740232856,-1000.0,0.00010945,2]
[333001749,1721740232866,-1000.0,0.00010945,2]
[333001750,1721740232876,-1000.0,0.00010945,2]
[333001751,1721740232885,-1000.0,0.00010945,2]
[333001752,1721740232895,-1000.0,0.00010945,2]
[333001753,1721740232905,-1000.0,0.00010945,2]
[333001754,1721740232914,-1000.0,0.00010945,2]
[333001755,1721740232924,-554.1256,0.00010945,2]
[333001756,1721740232933,-250.0,0.00010959,2]
[333001757,1721740232943,-197.72276905,0.00010997,2]
[333001758,1721740232952,-292.33438899,0.00010999,2]
[333001759,1721740232962,-2967.98574215,0.00010999,2]
[333001760,1721740232971,-250.50827034,0.00010999,2]
[333001761,1721740232981,-216.68546691,0.00010999,2]
[333001762,1721740232990,-395.65810738,0.00010999,2]
[333001763,1721740232999,-500.0,0.00010999,2]
[333001764,1721740233008,-500.0,0.00010999,2]
[333001765,1721740233018,-500.0,0.00010999,2]
[333001766,1721740233027,-492.84244124,0.00010999,2]
[333001767,1721740233038,-500.0,0.00010999,2]
[333001768,1721740233048,-371.96061968,0.00010999,2]
[333001769,1721740233058,-278.24397946,0.00010999,2]
[333001770,1721740233068,-150.0,0.00010999,2]
[333001771,1721740233078,-660.0,0.00011,2]
[333001772,1721740233087,-813452.46203692,0.00011,2]
[333001773,1721740233104,-2411.95134433,0.00011,2]
[333001774,1721740233116,-898.53028455,0.00011,2]
[333001775,1721740233127,-947.56950504,0.00011,2]
[333001776,1721740233142,-250.33780553,0.00011,2]
[333001777,1721740233168,-2831.16023162,0.00011,2]
[333001778,1721740233186,-1222.61381689,0.00011,2]
[333001779,1721740233198,-3378.90602154,0.00011,2]
[333001780,1721740233210,-3062.23394793,0.00011,2]
[333001781,1721740233223,-1200.22252239,0.00011,2]
[333001782,1721740233235,-570.09,0.00011,2]
[333001783,1721740233252,-2167.0181534,0.00011,2]
[333001784,1721740233264,-950.90717399,0.00011,2]
[333001785,1721740233275,-34261.02663295,0.00011,2]
[333001786,1721740233287,-35220.31682748,0.00011,2]
[333001787,1721740233309,-1073.0,0.0001072,2]
[333001788,1721740233319,-4655.92891518,0.00011,2]
[333001789,1721740233330,-1357.62885533,0.00011,2]
[333001790,1721740237763,-603.45575644,0.00010999,2]
[333001791,1721740237775,-910.60655848,0.00010999,2]
[333001848,1721740238824,-1453.92342723,0.00010999,2]
[333001849,1721740238834,-3272383.80772028,0.00011,2]
[333001852,1721740238851,-351146.60770362,0.00011,2]
[333001856,1721740238880,-822.49017547,0.00011,2]
[333001859,1721740238902,-9881.99222486,0.00011,2]
[333001861,1721740238914,-7768.1384,0.00011,2]
[333001864,1721740238926,-7146.2938,0.00011,2]
[333001866,1721740238938,-18261.65070178,0.00011,2]
[333001868,1721740238950,-1169.55400002,0.00011,2]
[333001870,1721740238963,-2088.02502512,0.00011,2]
[333001874,1721740238984,-399.70833916,0.00011,2]
[333001879,1721740239026,-573.2828905,0.00011,2]
[333001881,1721740239037,-358.48667185,0.00011,2]
[333002162,1721740241815,-434.6749995,0.00011,2]
[333002168,1721740241870,-156.3250005,0.00011,2]
[333002170,1721740241881,-482.77487984,0.00011,2]
[333002173,1721740241893,-286.14852919,0.00011,2]
[333002182,1721740241980,-26223.84272709,0.00011,2]
[333002188,1721740242037,-8329.65436545,0.00011,2]
[333002195,1721740242095,-1079.93214979,0.00011,2]
[333002201,1721740242155,-342528.72377787,0.00011,2]
[333002275,1721740242773,-204.83786661,0.000109,2]
[333002277,1721740242783,-744685.331405,0.00011,2]
[333002279,1721740242792,-716523.87625144,0.00011,2]
[333002281,1721740242801,-381244.84630241,0.00011,2]
[333002283,1721740242810,-15000.0,0.00011,2]
[333002285,1721740242819,-77890.45693957,0.00011,2]
[333002287,1721740242830,-73575.74266217,0.00011,2]
[333002299,1721740242938,-4330.59626476,0.00011,2]
[333002301,1721740242950,-7160.00000002,0.00011,2]
[333002303,1721740242961,-5966.6050798,0.00011,2]
[333002308,1721740242995,-54706.06364575,0.00011,2]
[333002312,1721740243055,-915.43335499,0.00011,2]
[333002579,1721740245827,-493.706,0.00011,2]
[333002581,1721740245839,-292.775,0.00011,2]
[333002593,1721740245950,-20359.84992364,0.00011,2]
[333002595,1721740245962,-45425.60432892,0.00011,2]
[333002598,1721740245974,-711.38074383,0.00011,2]
[333002600,1721740245985,-1235.87774031,0.00011,2]
[333002602,1721740245996,-1749.91574108,0.00011,2]
[333002604,1721740246007,-649.99877428,0.00011,2]
[333002606,1721740246018,-1000.0,0.00011,2]
[333002610,1721740246046,-279.82539136,0.00011,2]
[333002615,1721740246086,-2240.82649544,0.00011,2]
[333005006,1721740676193,382.05,8.219e-05,2]
[333005007,1721740699191,600.0,8.219e-05,2]
[333005008,1721740705813,216.53024033,8.219e-05,2]
[333005009,1721740708696,797.15416373,8.219e-05,2]
[333005010,1721740718309,192.15985628,8.219e-05,2]
[333005014,1721741216049,362.94,8.219e-05,2]
[333005018,1721741260487,68521.4,9.041e-05,2]
[333005042,1721741432964,-1000.0,9.397e-05,2]
[333005043,1721741432974,-536.39872032,9.442e-05,2]
[333005044,1721741432983,-160.45083347,9.485e-05,2]
[333005045,1721741432992,-153.77388828,9.515e-05,2]
[333005046,1721741433001,-155.39218711,9.516e-05,2]
[333005047,1721741433011,-643.95319124,9.522e-05,2]
[333005048,1721741433020,-156.02826447,9.536e-05,2]
[333005049,1721741433030,-558.87121593,9.553e-05,2]
[333005053,1721741433182,-85.08197531,9.553e-05,2]
[333005054,1721741433193,-153.77388828,9.592e-05,2]
[333005055,1721741433202,-153.78556041,9.61e-05,2]
[333005056,1721741433211,-150.36157516,9.616e-05,2]
[333005057,1721741433221,-153.78556041,9.626e-05,2]
[333005058,1721741433230,-150.36157516,9.751e-05,2]
[333005059,1721741433239,-348.05526628,9.754e-05,2]
[333005060,1721741433248,-1581.71632108,9.827e-05,2]
[333005061,1721741433260,-4468.91711392,9.827e-05,2]
[333005062,1721741433269,-348.05526628,9.843e-05,2]
[333005063,1721741433278,-150.3588316,9.877e-05,2]
[333005064,1721741433288,-150.36157516,9.902e-05,2]
[333005065,1721741433297,-690.35111066,9.914e-05,2]
[333005066,1721741433306,-153.77388828,9.977e-05,2]
[333005067,1721741433315,-166.66666666,9.982e-05,2]
[333005068,1721741433325,-470.75099638,0.0001,2]
[333005069,1721741433335,-156.02826447,0.00010008,2]
[333005070,1721741433344,-166.66666666,0.0001007,2]
[333005071,1721741433354,-348.05526628,0.00010115,2]
[333005072,1721741433364,-150.98429648,0.00010181,2]
[333005073,1721741433377,-153.77388828,0.00010221,2]
[333005074,1721741433388,-156.02826447,0.00010229,2]
[333005075,1721741433397,-643.95319124,0.00010241,2]
[333005076,1721741433407,-150.3588316,0.00010259,2]
[333005077,1721741433417,-448.0773,0.00010261,2]
[333005078,1721741433429,-153.77388828,0.00010303,2]
[333005079,1721741433440,-690.35111066,0.00010317,2]
[333005080,1721741433450,-643.95319124,0.00010323,2]
[333005081,1721741433459,-643.95319124,0.00010349,2]
[333005082,1721741433468,-154.38946821,0.00010361,2]
[333005083,1721741433478,-362.94,0.00010438,2]
[333005084,1721741433488,-154.38946821,0.00010487,2]
[333005085,1721741433497,-672.80697094,0.00010571,2]
[333005086,1721741433510,-327.19302906,0.00010571,2]
[333005087,1721741433519,-336.84645191,0.00010584,2]
[333005088,1721741433566,-307.10673933,0.00010584,2]
[333005089,1721741433584,-150.36157516,0.00010615,2]
[333005090,1721741433594,-156.73974447,0.00010739,2]
[333005091,1721741433603,-155.39218711,0.00010762,2]
[333005092,1721741433613,-150.36157516,0.00010821,2]
[333005093,1721741433626,-348.05526628,0.00010878,2]
[333005094,1721741433636,-150.36157516,0.0001088,2]
[333005095,1721741433646,-3000.0,0.0001089,2]
[333005096,1721741433655,-160.45083347,0.00010896,2]
[333005097,1721741433664,-947.5427,0.000109,2]
[333005098,1721741433674,-504.34452163,0.000109,2]
[333005099,1721741433684,-918.45382497,0.000109,2]
[333005100,1721741433696,-2619.14617503,0.000109,2]
[333005101,1721741433705,-220.51,0.00010904,3]
[333005102,1721741433715,-79.92012389,0.00010932,2]
[333005125,1721741438074,-2095.32,9.394e-05,2]
[333005126,1721741438084,-268.13514239,0.00010932,2]
[333005127,1721741438093,-250.0,0.00010959,2]
[333005128,1721741438103,-263.49424572,0.00010977,2]
[333005129,1721741438113,-443.05061189,0.00010997,2]
[333005130,1721741438124,-2773.28413778,0.00010997,2]
[333005131,1721741438238,-4830.00410248,0.00010997,2]
[333005132,1721741438264,-400.0,0.00010997,2]
[333005133,1721741438276,-813.7156,0.00010997,2]
[333005134,1721741438294,-437.70943335,0.00010997,2]
[333005135,1721741438325,-366.962341,0.00010997,2]
[333005302,1721741440027,-3245.9,0.00010997,2]
[333005311,1721741440110,-3100.09378254,0.00010997,2]
[333005327,1721741440261,-553.996,0.00010997,2]
[333005330,1721741440288,-1997.0,0.00010997,2]
[333005557,1721741442784,-319.51995882,0.00010997,2]
[333005612,1721741443122,-5000.05595883,0.00010997,2]
[333005614,1721741443133,-5459.19998,0.00010997,2]
[333005616,1721741443145,-11570.63860437,0.00010997,2]
[333005619,1721741443156,-24909.42380563,0.00010997,2]
[333005621,1721741443166,-2382.0,0.00010998,2]
[333005622,1721741443175,-150.0,0.00010998,2]
[333005624,1721741443185,-550.0,0.00010998,2]
[333005626,1721741443194,-150.0,0.00010998,2]
[333005628,1721741443203,-2164.634,0.00010998,2]
[333005630,1721741443212,-362.0,0.00010998,2]
[333005632,1721741443221,-1254.0,0.00010998,2]
[333005634,1721741443231,-1663.0,0.00010998,2]
[333005636,1721741443240,-1819.0,0.00010998,2]
[333005638,1721741443249,-1468.037,0.00010998,2]
[333005639,1721741443258,-1202.0,0.00010998,2]
[333005641,1721741443267,-450.0,0.00010998,2]
[333005643,1721741443277,-43005.53649897,0.00010998,2]
[333005646,1721741443296,-826.25901472,0.00010998,2]
[333005649,1721741443307,-5975.35005171,0.00010998,2]
[333005651,1721741443319,-192.8544346,0.00010998,2]
[333005653,1721741443328,-500.0,0.00010999,2]
[333005654,1721741443338,-273.69556535,0.00010999,2]
[333005656,1721741443349,-226.30443465,0.00010999,2]
[333005658,1721741443359,-7019.75401148,0.00011,2]
[333005661,1721741443371,-523.44,0.00011,2]
[333005866,1721741446159,-324.81,0.00010998,2]
[333005867,1721741446170,-120.19,0.00010998,2]
[333005868,1721741446180,-5786.99381131,0.00011,2]
[333005869,1721741446602,-619.76020313,0.00011,2]
[333005870,1721741446618,-21708.48171763,0.00011,2]
[333005871,1721741446630,-1412.93673964,0.00011,2]
[333005872,1721741446662,-1175.55550787,0.00011,2]
[333005873,1721741446674,-591.5645175,0.00011,2]
[333005874,1721741446685,-704.8,0.00011,2]